[Event "*** SCC Grand Prix: Titled Tuesday Blitz"]
[Site "Chess.com"]
[Date "2020.06.09"]
[Round "1"]
[White "cholzan"]
[Black "ftorodent"]
[Result "0-1"]
[WhiteElo "2338"]
[BlackElo "2659"]
[TimeControl "180+1"]
[EndTime "9:07:50 PDT"]
[Termination "ftorodent won by resignation"]

1. d4 {[%clk 0:02:58.6]} 1... f5 {[%clk 0:02:59.1]} 2. g3 {[%clk 0:02:58.3]}
2... Nf6 {[%clk 0:02:58.8]} 3. Bg2 {[%clk 0:02:58.7]} 3... g6 {[%clk 0:02:58.9]}
4. b4 {[%clk 0:02:58.6]} 4... d5 {[%clk 0:02:54.1]} 5. Bb2 {[%clk 0:02:57.8]}
5... Bg7 {[%clk 0:02:53.8]} 6. Nd2 {[%clk 0:02:54]} 6... Nc6 {[%clk 0:02:52.3]}
7. Ngf3 {[%clk 0:02:51.4]} 7... Nxb4 {[%clk 0:02:44.7]} 8. c4 {[%clk 0:02:51.2]}
8... c6 {[%clk 0:02:24.7]} 9. O-O {[%clk 0:02:50.9]} 9... O-O {[%clk 0:02:24]}
10. Qb3 {[%clk 0:02:48.7]} 10... Na6 {[%clk 0:02:11.4]} 11. Ne5 {[%clk
0:02:41.1]} 11... Nc7 {[%clk 0:02:09.5]} 12. cxd5 {[%clk 0:02:38.2]} 12... Ncxd5
{[%clk 0:02:07.8]} 13. e4 {[%clk 0:02:38]} 13... fxe4 {[%clk 0:02:07.4]} 14.
Nxe4 {[%clk 0:02:37.5]} 14... Qb6 {[%clk 0:01:54.7]} 15. Nxf6+ {[%clk
0:02:30.8]} 15... exf6 {[%clk 0:01:54.8]} 16. Bxd5+ {[%clk 0:02:30.6]} 16...
cxd5 {[%clk 0:01:54.3]} 17. Qxb6 {[%clk 0:02:18.2]} 17... axb6 {[%clk
0:01:53.8]} 18. Nd3 {[%clk 0:02:18.5]} 18... Bf5 {[%clk 0:01:46.1]} 19. Nf4
{[%clk 0:02:17.7]} 19... Ra5 {[%clk 0:01:46.1]} 20. Bc3 {[%clk 0:02:14.3]} 20...
Rb5 {[%clk 0:01:33.3]} 21. a3 {[%clk 0:02:11.7]} 21... Rb3 {[%clk 0:01:27.3]}
22. Bb4 {[%clk 0:02:10.8]} 22... Rd8 {[%clk 0:01:27.3]} 23. Rfe1 {[%clk
0:02:00]} 23... Be4 {[%clk 0:01:05.4]} 24. Ne6 {[%clk 0:01:58.5]} 24... Rc8
{[%clk 0:01:05.4]} 25. Nxg7 {[%clk 0:01:55.3]} 25... Kxg7 {[%clk 0:01:04.9]} 26.
Rac1 {[%clk 0:01:55.3]} 26... Rc6 {[%clk 0:01:04.9]} 27. h3 {[%clk 0:01:47]}
27... h5 {[%clk 0:01:01.1]} 28. Rxc6 {[%clk 0:01:29.2]} 28... bxc6 {[%clk
0:01:00.4]} 29. Rc1 {[%clk 0:01:29.9]} 29... Rd3 {[%clk 0:00:53.4]} 30. Kf1
{[%clk 0:01:16.6]} 30... Rxd4 {[%clk 0:00:40.5]} 31. Rxc6 {[%clk 0:01:14.8]}
31... b5 {[%clk 0:00:39.9]} 32. Ke2 {[%clk 0:01:12.4]} 32... Kf7 {[%clk
0:00:35.7]} 33. Bc3 {[%clk 0:01:11.1]} 33... Rc4 {[%clk 0:00:32.9]} 34. Rxf6+
{[%clk 0:01:08.1]} 34... Ke7 {[%clk 0:00:32.4]} 35. Be5 {[%clk 0:01:07.3]} 35...
Bf5 {[%clk 0:00:27.3]} 36. f4 {[%clk 0:01:02.3]} 36... d4 {[%clk 0:00:21.1]} 37.
Rd6 {[%clk 0:00:54]} 37... d3+ {[%clk 0:00:20.8]} 38. Kd1 {[%clk 0:00:49.7]}
38... Rc2 {[%clk 0:00:17.6]} 39. Rd4 {[%clk 0:00:37.2]} 39... Rh2 {[%clk
0:00:15.4]} 40. h4 {[%clk 0:00:29.2]} 40... Bg4+ {[%clk 0:00:13.8]} 41. Kc1
{[%clk 0:00:28.4]} 41... Rc2+ {[%clk 0:00:13.6]} 42. Kb1 {[%clk 0:00:28.4]}
42... Bf5 {[%clk 0:00:14]} 43. Bd6+ {[%clk 0:00:25.8]} 43... Ke6 {[%clk
0:00:13.9]} 44. Bb4 {[%clk 0:00:25.7]} 44... d2 {[%clk 0:00:13.6]} 45. Rd6+
{[%clk 0:00:25.3]} 45... Kf7 {[%clk 0:00:13.4]} 0-1

[Event "*** SCC Grand Prix: Titled Tuesday Blitz"]
[Site "Chess.com"]
[Date "2020.06.09"]
[Round "1"]
[White "Rakhmanov_Aleksandr"]
[Black "Fh2411"]
[Result "1-0"]
[WhiteElo "2856"]
[BlackElo "2437"]
[TimeControl "180+1"]
[EndTime "9:07:52 PDT"]
[Termination "Rakhmanov_Aleksandr won by resignation"]

1. Nf3 {[%clk 0:03:00.9]} 1... d5 {[%clk 0:02:54.2]} 2. g3 {[%clk 0:03:01.8]}
2... Nf6 {[%clk 0:02:52.2]} 3. Bg2 {[%clk 0:03:02.1]} 3... g6 {[%clk 0:02:52.8]}
4. O-O {[%clk 0:03:01.7]} 4... Bg7 {[%clk 0:02:53.3]} 5. d4 {[%clk 0:03:02.5]}
5... O-O {[%clk 0:02:53.8]} 6. c4 {[%clk 0:03:03.4]} 6... c6 {[%clk 0:02:54.2]}
7. Qa4 {[%clk 0:03:02]} 7... Nbd7 {[%clk 0:02:32.7]} 8. cxd5 {[%clk 0:03:00.3]}
8... Nb6 {[%clk 0:02:32.3]} 9. Qb3 {[%clk 0:02:53.9]} 9... Qxd5 {[%clk
0:02:31.7]} 10. Qb4 {[%clk 0:02:54.3]} 10... Qd6 {[%clk 0:02:30]} 11. Qe1 {[%clk
0:02:54.8]} 11... Bf5 {[%clk 0:02:25.4]} 12. Nc3 {[%clk 0:02:54.1]} 12... Ne4
{[%clk 0:02:25]} 13. Bf4 {[%clk 0:02:53.8]} 13... Qb4 {[%clk 0:02:22.3]} 14. Qc1
{[%clk 0:02:31.8]} 14... Nd5 {[%clk 0:01:50.5]} 15. Nxe4 {[%clk 0:02:06.6]}
15... Bxe4 {[%clk 0:01:48]} 16. Bd2 {[%clk 0:02:02.5]} 16... Qb6 {[%clk
0:01:46]} 17. e3 {[%clk 0:01:44.8]} 17... Rac8 {[%clk 0:01:44.1]} 18. Ne5 {[%clk
0:01:28.4]} 18... Bxg2 {[%clk 0:01:41.7]} 19. Nc4 {[%clk 0:01:27.8]} 19... Qa6
{[%clk 0:01:28.6]} 20. Kxg2 {[%clk 0:01:27.9]} 20... c5 {[%clk 0:01:28.5]} 21.
e4 {[%clk 0:01:22.1]} 21... cxd4 {[%clk 0:01:28.4]} 22. exd5 {[%clk 0:01:22.5]}
22... Rxc4 {[%clk 0:01:24.4]} 23. Qd1 {[%clk 0:01:22.8]} 23... Qd6 {[%clk
0:01:18.3]} 24. Qf3 {[%clk 0:01:21.3]} 24... Rd8 {[%clk 0:01:18.8]} 25. Rfe1
{[%clk 0:01:19.3]} 25... Bf6 {[%clk 0:01:17.9]} 26. Rac1 {[%clk 0:01:13.4]}
26... Rxc1 {[%clk 0:00:57.4]} 27. Rxc1 {[%clk 0:01:14.3]} 27... Kg7 {[%clk
0:00:52.5]} 28. b3 {[%clk 0:01:00.6]} 28... Qxd5 {[%clk 0:00:52.6]} 29. Rc7
{[%clk 0:00:59.3]} 29... Qxf3+ {[%clk 0:00:43.6]} 30. Kxf3 {[%clk 0:01:00.2]}
30... Rb8 {[%clk 0:00:41.9]} 31. Ke4 {[%clk 0:00:58]} 31... a6 {[%clk
0:00:41.5]} 32. g4 {[%clk 0:00:54.2]} 32... h6 {[%clk 0:00:41.7]} 33. f4 {[%clk
0:00:54.3]} 33... g5 {[%clk 0:00:41.6]} 34. f5 {[%clk 0:00:53.4]} 34... b6
{[%clk 0:00:35.5]} 35. Be1 {[%clk 0:00:46.1]} 35... Rd8 {[%clk 0:00:33.5]} 36.
Kd3 {[%clk 0:00:41.2]} 36... Rd5 {[%clk 0:00:30.3]} 37. Bf2 {[%clk 0:00:35.3]}
37... Rc5 {[%clk 0:00:26.8]} 38. Rxc5 {[%clk 0:00:34.5]} 38... bxc5 {[%clk
0:00:27.7]} 39. Kc4 {[%clk 0:00:34.7]} 39... Be5 {[%clk 0:00:27.2]} 40. h3
{[%clk 0:00:34.3]} 40... Bf4 {[%clk 0:00:26]} 41. b4 {[%clk 0:00:32.1]} 41...
Be3 {[%clk 0:00:19.4]} 42. Bg3 {[%clk 0:00:24.9]} 42... cxb4 {[%clk 0:00:19.5]}
43. Be5+ {[%clk 0:00:24.7]} 43... f6 {[%clk 0:00:14.6]} 44. Bxd4 {[%clk
0:00:25.1]} 44... Bd2 {[%clk 0:00:13.9]} 45. Bc5 {[%clk 0:00:23.9]} 45... a5
{[%clk 0:00:14.2]} 46. Bxe7 {[%clk 0:00:23.3]} 46... Kf7 {[%clk 0:00:13.9]} 47.
Bc5 {[%clk 0:00:15.1]} 47... Ke8 {[%clk 0:00:13.3]} 48. Kb5 {[%clk 0:00:12.7]}
48... Kf7 {[%clk 0:00:12.3]} 49. Bb6 {[%clk 0:00:12.6]} 49... Ke7 {[%clk
0:00:08.8]} 50. Bxa5 {[%clk 0:00:12.7]} 50... Kd6 {[%clk 0:00:09.5]} 51. Bxb4+
{[%clk 0:00:13]} 51... Bxb4 {[%clk 0:00:10.4]} 52. Kxb4 {[%clk 0:00:13.9]} 1-0

[Event "*** SCC Grand Prix: Titled Tuesday Blitz"]
[Site "Chess.com"]
[Date "2020.06.09"]
[Round "1"]
[White "vinniethepooh"]
[Black "pawnwonder"]
[Result "1-0"]
[WhiteElo "2560"]
[BlackElo "2196"]
[TimeControl "180+1"]
[EndTime "9:07:52 PDT"]
[Termination "vinniethepooh won on time"]

1. d4 {[%clk 0:02:59.6]} 1... Nf6 {[%clk 0:02:57.1]} 2. c4 {[%clk 0:02:59.3]}
2... g6 {[%clk 0:02:54.6]} 3. Nc3 {[%clk 0:02:57.6]} 3... Bg7 {[%clk 0:02:52.8]}
4. e4 {[%clk 0:02:56.5]} 4... d6 {[%clk 0:02:52.2]} 5. Be2 {[%clk 0:02:56.6]}
5... O-O {[%clk 0:02:51.5]} 6. Be3 {[%clk 0:02:53.5]} 6... e5 {[%clk 0:02:43.1]}
7. d5 {[%clk 0:02:51.8]} 7... Na6 {[%clk 0:02:42.6]} 8. g4 {[%clk 0:02:48.5]}
8... Nc5 {[%clk 0:02:40.2]} 9. f3 {[%clk 0:02:48.5]} 9... h5 {[%clk 0:02:38.5]}
10. g5 {[%clk 0:02:47]} 10... Nh7 {[%clk 0:02:36.8]} 11. h4 {[%clk 0:02:43.6]}
11... a5 {[%clk 0:02:30.4]} 12. Qd2 {[%clk 0:02:42]} 12... f6 {[%clk 0:02:25.2]}
13. gxf6 {[%clk 0:02:40.8]} 13... Nxf6 {[%clk 0:02:11.9]} 14. O-O-O {[%clk
0:02:38.4]} 14... Nfd7 {[%clk 0:02:06.6]} 15. Nh3 {[%clk 0:02:37.1]} 15... Na6
{[%clk 0:01:17.7]} 16. Rdg1 {[%clk 0:02:32]} 16... Qf6 {[%clk 0:01:12.5]} 17.
Ng5 {[%clk 0:02:16.6]} 17... Ndc5 {[%clk 0:01:10.7]} 18. Rg3 {[%clk 0:01:59.5]}
18... c6 {[%clk 0:00:58.3]} 19. Rhg1 {[%clk 0:01:58.4]} 19... Bd7 {[%clk
0:00:56.2]} 20. Kb1 {[%clk 0:01:49.4]} 20... Be8 {[%clk 0:00:55.3]} 21. Bd1
{[%clk 0:01:46.3]} 21... Rb8 {[%clk 0:00:50.7]} 22. Ne2 {[%clk 0:01:10.1]} 22...
b5 {[%clk 0:00:44.1]} 23. cxb5 {[%clk 0:01:09.3]} 23... Rxb5 {[%clk 0:00:20.6]}
24. Nc3 {[%clk 0:01:06.9]} 24... Rb8 {[%clk 0:00:20.1]} 25. dxc6 {[%clk
0:01:07.3]} 25... Nc7 {[%clk 0:00:17.2]} 26. Nd5 {[%clk 0:01:06.8]} 26... Nxd5
{[%clk 0:00:16.9]} 27. Qxd5+ {[%clk 0:01:07.4]} 27... Kh8 {[%clk 0:00:16.5]} 28.
Bxc5 {[%clk 0:00:43.9]} 28... dxc5 {[%clk 0:00:16.4]} 29. Ne6 {[%clk 0:00:37.7]}
29... Bf7 {[%clk 0:00:15.7]} 30. Bb3 {[%clk 0:00:25.6]} 30... Rfe8 {[%clk
0:00:07.5]} 31. c7 {[%clk 0:00:16.5]} 31... Rbc8 {[%clk 0:00:06]} 32. Qb7 {[%clk
0:00:14.8]} 32... Bxe6 {[%clk 0:00:05]} 33. Rxg6 {[%clk 0:00:14.7]} 33... Qf7
{[%clk 0:00:04.2]} 34. Rxe6 {[%clk 0:00:14]} 34... Rxe6 {[%clk 0:00:03.5]} 35.
Qxc8+ {[%clk 0:00:13.6]} 35... Re8 {[%clk 0:00:03.9]} 36. Qb7 {[%clk 0:00:04.7]}
36... Qf8 {[%clk 0:00:03.6]} 37. Rg5 {[%clk 0:00:03.5]} 37... Bh6 {[%clk
0:00:03.4]} 38. Rxh5 {[%clk 0:00:03.8]} 38... Kh7 {[%clk 0:00:03.3]} 39. Rf5
{[%clk 0:00:04]} 39... Qg7 {[%clk 0:00:02.7]} 40. c8=Q {[%clk 0:00:04]} 40...
Rxc8 {[%clk 0:00:01.5]} 41. Rf7 {[%clk 0:00:04.3]} 1-0

[Event "*** SCC Grand Prix: Titled Tuesday Blitz"]
[Site "Chess.com"]
[Date "2020.06.09"]
[Round "1"]
[White "elamier"]
[Black "MartinCerveny"]
[Result "1/2-1/2"]
[WhiteElo "2096"]
[BlackElo "2501"]
[TimeControl "180+1"]
[EndTime "9:07:52 PDT"]
[Termination "Game drawn - insufficient material"]

1. d4 {[%clk 0:03:00.9]} 1... d5 {[%clk 0:02:59.6]} 2. Nf3 {[%clk 0:03:00.2]}
2... Nf6 {[%clk 0:02:58.9]} 3. e3 {[%clk 0:03:00.7]} 3... c6 {[%clk 0:02:58.2]}
4. Ne5 {[%clk 0:02:59.5]} 4... Bf5 {[%clk 0:02:53.1]} 5. Nd2 {[%clk 0:02:59.1]}
5... e6 {[%clk 0:02:52.8]} 6. g4 {[%clk 0:02:58.7]} 6... Bg6 {[%clk 0:02:51]} 7.
h4 {[%clk 0:02:58.4]} 7... h5 {[%clk 0:02:34.6]} 8. Nxg6 {[%clk 0:02:57.6]} 8...
fxg6 {[%clk 0:02:34.6]} 9. Bd3 {[%clk 0:02:56.8]} 9... hxg4 {[%clk 0:02:19.4]}
10. Bxg6+ {[%clk 0:02:56.6]} 10... Kd7 {[%clk 0:02:19.5]} 11. c4 {[%clk
0:02:52.8]} 11... Bd6 {[%clk 0:02:07.6]} 12. e4 {[%clk 0:02:39.6]} 12... dxe4
{[%clk 0:01:58.8]} 13. Nf1 {[%clk 0:02:12.2]} 13... Kc8 {[%clk 0:01:46]} 14. Bg5
{[%clk 0:02:08.4]} 14... Nbd7 {[%clk 0:01:26.2]} 15. Qd2 {[%clk 0:01:59.6]}
15... Qc7 {[%clk 0:01:17.8]} 16. O-O-O {[%clk 0:01:54.3]} 16... b6 {[%clk
0:01:03.8]} 17. Kb1 {[%clk 0:01:50.4]} 17... Kb7 {[%clk 0:01:03.7]} 18. Ne3
{[%clk 0:01:44.2]} 18... Bf4 {[%clk 0:00:57.9]} 19. Qe2 {[%clk 0:01:32.6]} 19...
Raf8 {[%clk 0:00:52.2]} 20. Nxg4 {[%clk 0:01:22.7]} 20... Bxg5 {[%clk
0:00:43.9]} 21. hxg5 {[%clk 0:01:21.9]} 21... Nxg4 {[%clk 0:00:43.8]} 22. Rxh8
{[%clk 0:01:12.8]} 22... Rxh8 {[%clk 0:00:43.4]} 23. Qxg4 {[%clk 0:01:11.8]}
23... Rf8 {[%clk 0:00:39.9]} 24. Qxe4 {[%clk 0:00:44.7]} 24... Qd6 {[%clk
0:00:34.8]} 25. d5 {[%clk 0:00:33.8]} 25... exd5 {[%clk 0:00:33.4]} 26. cxd5
{[%clk 0:00:33.2]} 26... c5 {[%clk 0:00:33.1]} 27. Qe6 {[%clk 0:00:29.7]} 27...
Kc7 {[%clk 0:00:32.8]} 28. Rd2 {[%clk 0:00:23.1]} 28... Ne5 {[%clk 0:00:30.3]}
29. Be4 {[%clk 0:00:20]} 29... Nc4 {[%clk 0:00:19.9]} 30. Re2 {[%clk 0:00:19]}
30... a5 {[%clk 0:00:17.2]} 31. Bd3 {[%clk 0:00:17.4]} 31... Qxe6 {[%clk
0:00:15.9]} 32. dxe6 {[%clk 0:00:16.7]} 32... Nd6 {[%clk 0:00:13.5]} 33. e7
{[%clk 0:00:16.9]} 33... Rf4 {[%clk 0:00:10.5]} 34. Bg6 {[%clk 0:00:17.2]} 34...
Kd7 {[%clk 0:00:09.4]} 35. e8=Q+ {[%clk 0:00:16.8]} 35... Nxe8 {[%clk
0:00:09.5]} 36. Bxe8+ {[%clk 0:00:17.2]} 36... Kd6 {[%clk 0:00:09.8]} 37. g6
{[%clk 0:00:17.7]} 37... c4 {[%clk 0:00:09.6]} 38. Bf7 {[%clk 0:00:18.2]} 38...
b5 {[%clk 0:00:09.2]} 39. a3 {[%clk 0:00:17.8]} 39... b4 {[%clk 0:00:08]} 40.
axb4 {[%clk 0:00:17.7]} 40... axb4 {[%clk 0:00:08.9]} 41. Rc2 {[%clk 0:00:17.9]}
41... Kc5 {[%clk 0:00:08.5]} 42. Rxc4+ {[%clk 0:00:17.7]} 42... Rxc4 {[%clk
0:00:07.7]} 43. Bxc4 {[%clk 0:00:18.4]} 43... Kxc4 {[%clk 0:00:08.6]} 44. Kc2
{[%clk 0:00:18.1]} 44... b3+ {[%clk 0:00:08.3]} 45. Kd2 {[%clk 0:00:18.3]} 45...
Kd4 {[%clk 0:00:09.2]} 46. f4 {[%clk 0:00:17.9]} 46... Ke4 {[%clk 0:00:09.3]}
47. Kc3 {[%clk 0:00:18.5]} 47... Kxf4 {[%clk 0:00:09.5]} 48. Kxb3 {[%clk
0:00:19.1]} 48... Kf5 {[%clk 0:00:10.4]} 49. Kc2 {[%clk 0:00:19.8]} 49... Kxg6
{[%clk 0:00:11.3]} 50. b4 {[%clk 0:00:19.6]} 50... Kf5 {[%clk 0:00:11.6]} 51.
Kd3 {[%clk 0:00:19.5]} 51... Ke5 {[%clk 0:00:11.5]} 52. b5 {[%clk 0:00:19.4]}
52... Kd6 {[%clk 0:00:11.6]} 53. Ke4 {[%clk 0:00:18.8]} 53... Kc5 {[%clk
0:00:11.7]} 54. Kf5 {[%clk 0:00:19.3]} 54... Kxb5 {[%clk 0:00:11.9]} 55. Kg6
{[%clk 0:00:20.1]} 55... Kb4 {[%clk 0:00:12.6]} 56. Kxg7 {[%clk 0:00:20.9]}
1/2-1/2

[Event "*** SCC Grand Prix: Titled Tuesday Blitz"]
[Site "Chess.com"]
[Date "2020.06.09"]
[Round "1"]
[White "Ind1anStar"]
[Black "The_Machine04"]
[Result "1-0"]
[WhiteElo "2609"]
[BlackElo "2285"]
[TimeControl "180+1"]
[EndTime "9:07:53 PDT"]
[Termination "Ind1anStar won by resignation"]

1. c4 {[%clk 0:03:00.6]} 1... e6 {[%clk 0:02:59]} 2. Nf3 {[%clk 0:02:59.6]} 2...
d5 {[%clk 0:02:57.5]} 3. e3 {[%clk 0:02:57.8]} 3... Nf6 {[%clk 0:02:54.3]} 4.
Nc3 {[%clk 0:02:56.5]} 4... Be7 {[%clk 0:02:45.8]} 5. b3 {[%clk 0:02:54.7]} 5...
O-O {[%clk 0:02:38.5]} 6. Bb2 {[%clk 0:02:53.6]} 6... c5 {[%clk 0:02:35]} 7. d4
{[%clk 0:02:49.7]} 7... Nc6 {[%clk 0:02:18.4]} 8. dxc5 {[%clk 0:02:45.5]} 8...
dxc4 {[%clk 0:02:02.3]} 9. Bxc4 {[%clk 0:02:43.6]} 9... Bxc5 {[%clk 0:02:00.7]}
10. Qe2 {[%clk 0:02:41.6]} 10... a6 {[%clk 0:01:59]} 11. O-O {[%clk 0:02:40.5]}
11... Be7 {[%clk 0:01:51.8]} 12. Rfd1 {[%clk 0:02:31.5]} 12... Qc7 {[%clk
0:01:51.7]} 13. Rac1 {[%clk 0:02:29.9]} 13... Rd8 {[%clk 0:01:41.2]} 14. e4
{[%clk 0:02:25.8]} 14... b5 {[%clk 0:01:02]} 15. Bd3 {[%clk 0:02:23.5]} 15...
Bb7 {[%clk 0:01:01.4]} 16. e5 {[%clk 0:02:21.6]} 16... Nd5 {[%clk 0:00:57.6]}
17. Nxd5 {[%clk 0:02:18]} 17... Rxd5 {[%clk 0:00:54.4]} 18. Be4 {[%clk
0:02:16.4]} 18... Rxd1+ {[%clk 0:00:53.7]} 19. Qxd1 {[%clk 0:02:16.6]} 19... Rc8
{[%clk 0:00:34.3]} 20. h3 {[%clk 0:02:11.6]} 20... h6 {[%clk 0:00:25.2]} 21. Qe2
{[%clk 0:01:56.1]} 21... Qb6 {[%clk 0:00:21.5]} 22. Bb1 {[%clk 0:01:47.4]} 22...
Rd8 {[%clk 0:00:13.1]} 23. Qe4 {[%clk 0:01:45.2]} 23... g6 {[%clk 0:00:12.3]}
24. Qf4 {[%clk 0:01:43.3]} 24... Bf8 {[%clk 0:00:11.3]} 25. h4 {[%clk
0:01:39.5]} 25... Ne7 {[%clk 0:00:07.4]} 26. h5 {[%clk 0:01:35.2]} 26... Bxf3
{[%clk 0:00:07.2]} 27. Qxf3 {[%clk 0:01:32.9]} 27... Bg7 {[%clk 0:00:03.5]} 28.
hxg6 {[%clk 0:01:31.7]} 28... fxg6 {[%clk 0:00:04.4]} 29. Rd1 {[%clk 0:01:27]}
29... Rf8 {[%clk 0:00:04.7]} 30. Qe2 {[%clk 0:01:24.5]} 30... Nf5 {[%clk
0:00:05]} 31. Rd7 {[%clk 0:01:14.6]} 31... Rf7 {[%clk 0:00:04.9]} 32. Qd2 {[%clk
0:01:11.7]} 32... Rxd7 {[%clk 0:00:04.4]} 33. Qxd7 {[%clk 0:01:11.3]} 33... Kf8
{[%clk 0:00:02.7]} 34. Qc8+ {[%clk 0:01:06]} 34... Kf7 {[%clk 0:00:02.1]} 35.
Qd7+ {[%clk 0:01:05.5]} 35... Ne7 {[%clk 0:00:03]} 36. Bd4 {[%clk 0:01:02.8]}
36... Qc6 {[%clk 0:00:03.1]} 37. Qxc6 {[%clk 0:00:49.7]} 37... Nxc6 {[%clk
0:00:04]} 38. Be3 {[%clk 0:00:48.1]} 38... Bxe5 {[%clk 0:00:04.6]} 39. Be4
{[%clk 0:00:48.3]} 39... Ne7 {[%clk 0:00:04.3]} 40. Bb7 {[%clk 0:00:48.3]} 40...
Nf5 {[%clk 0:00:05.2]} 41. Bxa6 {[%clk 0:00:47.4]} 41... b4 {[%clk 0:00:06.1]}
42. Bc5 {[%clk 0:00:46.2]} 42... Bc3 {[%clk 0:00:07]} 43. Bd3 {[%clk 0:00:45.6]}
43... Nd4 {[%clk 0:00:07.3]} 44. Kf1 {[%clk 0:00:43.7]} 44... Nc6 {[%clk
0:00:07.5]} 45. Ke2 {[%clk 0:00:42.9]} 45... Ne5 {[%clk 0:00:08.4]} 46. Be4
{[%clk 0:00:41]} 46... Kf6 {[%clk 0:00:09.3]} 47. f4 {[%clk 0:00:39.9]} 47... h5
{[%clk 0:00:09.5]} 48. fxe5+ {[%clk 0:00:39.8]} 48... Kxe5 {[%clk 0:00:10.4]}
49. Bxg6 {[%clk 0:00:39]} 49... h4 {[%clk 0:00:09.9]} 50. Be7 {[%clk 0:00:37.9]}
50... Kf4 {[%clk 0:00:09]} 51. Bxh4 {[%clk 0:00:37.9]} 51... Kg4 {[%clk
0:00:08.9]} 52. Be1 {[%clk 0:00:37.8]} 52... Bxe1 {[%clk 0:00:06.8]} 53. Kxe1
{[%clk 0:00:38]} 53... Kg3 {[%clk 0:00:07.7]} 54. Be4 {[%clk 0:00:38.1]} 54...
Kf4 {[%clk 0:00:07.4]} 55. Bb7 {[%clk 0:00:38.1]} 55... Ke3 {[%clk 0:00:08.3]}
56. Kd1 {[%clk 0:00:35.6]} 56... e5 {[%clk 0:00:08.6]} 57. g4 {[%clk 0:00:33.4]}
57... Kf4 {[%clk 0:00:08.1]} 58. Bc8 {[%clk 0:00:34]} 58... e4 {[%clk
0:00:08.3]} 59. Ke2 {[%clk 0:00:34.4]} 59... e3 {[%clk 0:00:08.3]} 60. Bf5
{[%clk 0:00:33.6]} 60... Ke5 {[%clk 0:00:08.6]} 61. Kxe3 {[%clk 0:00:34]} 1-0

[Event "*** SCC Grand Prix: Titled Tuesday Blitz"]
[Site "Chess.com"]
[Date "2020.06.09"]
[Round "1"]
[White "Zavgorodniy_Serg"]
[Black "Danesz22"]
[Result "1-0"]
[WhiteElo "2659"]
[BlackElo "2340"]
[TimeControl "180+1"]
[EndTime "9:07:54 PDT"]
[Termination "Zavgorodniy_Serg won by resignation"]

1. e4 {[%clk 0:02:59.4]} 1... e5 {[%clk 0:02:59.9]} 2. Nf3 {[%clk 0:02:58.8]}
2... Nc6 {[%clk 0:02:59.8]} 3. Bb5 {[%clk 0:02:58.3]} 3... a6 {[%clk 0:02:59.3]}
4. Bxc6 {[%clk 0:02:57]} 4... dxc6 {[%clk 0:02:58.5]} 5. O-O {[%clk 0:02:57.5]}
5... f6 {[%clk 0:02:58.4]} 6. d4 {[%clk 0:02:56.5]} 6... exd4 {[%clk 0:02:57.4]}
7. e5 {[%clk 0:02:50.1]} 7... Bg4 {[%clk 0:02:49.1]} 8. Re1 {[%clk 0:02:47]}
8... Be7 {[%clk 0:02:44.3]} 9. Nbd2 {[%clk 0:02:28.4]} 9... Qd5 {[%clk
0:02:26.8]} 10. exf6 {[%clk 0:02:25.2]} 10... gxf6 {[%clk 0:02:25.3]} 11. h3
{[%clk 0:02:25.5]} 11... Bh5 {[%clk 0:02:23.4]} 12. Ne4 {[%clk 0:02:09.4]} 12...
O-O-O {[%clk 0:02:20.7]} 13. Bf4 {[%clk 0:02:06.7]} 13... c5 {[%clk 0:01:48.6]}
14. g4 {[%clk 0:01:56.4]} 14... Bg6 {[%clk 0:01:46.3]} 15. Ng3 {[%clk
0:01:56.4]} 15... h5 {[%clk 0:01:23.9]} 16. Nh4 {[%clk 0:01:56.3]} 16... Qf7
{[%clk 0:01:13.1]} 17. Nxg6 {[%clk 0:01:46.3]} 17... Qxg6 {[%clk 0:01:11]} 18.
gxh5 {[%clk 0:01:46.7]} 18... Qh7 {[%clk 0:01:07.3]} 19. Qg4+ {[%clk 0:01:43.7]}
19... Kb8 {[%clk 0:01:06.2]} 20. Re6 {[%clk 0:01:36.3]} 20... Bd6 {[%clk
0:01:00.4]} 21. Bxd6 {[%clk 0:01:32.8]} 21... cxd6 {[%clk 0:00:58.6]} 22. Rae1
{[%clk 0:01:32.9]} 22... Qxc2 {[%clk 0:00:50.8]} 23. Qg7 {[%clk 0:01:28.7]}
23... Nh6 {[%clk 0:00:49]} 24. Re7 {[%clk 0:01:27]} 24... Qxb2 {[%clk 0:00:49]}
25. Qxf6 {[%clk 0:01:15.2]} 25... Ka8 {[%clk 0:00:47.1]} 26. R1e2 {[%clk
0:01:09]} 26... Qb1+ {[%clk 0:00:42.8]} 27. Kg2 {[%clk 0:01:06.1]} 27... d3
{[%clk 0:00:43]} 28. Re1 {[%clk 0:01:05.2]} 28... Qxa2 {[%clk 0:00:38]} 29. Qf3
{[%clk 0:01:04.1]} 29... d5 {[%clk 0:00:32]} 30. Qxd3 {[%clk 0:01:04.1]} 30...
Rhf8 {[%clk 0:00:31]} 31. R1e2 {[%clk 0:01:03.3]} 31... Qc4 {[%clk 0:00:28.3]}
32. Qh7 {[%clk 0:01:02.6]} 32... Nf5 {[%clk 0:00:26.7]} 33. Nxf5 {[%clk
0:00:53.6]} 33... Rxf5 {[%clk 0:00:23.8]} 34. Qxf5 {[%clk 0:00:52.5]} 34... Rg8+
{[%clk 0:00:23.4]} 35. Kh2 {[%clk 0:00:50.9]} 35... Qc1 {[%clk 0:00:21.3]} 36.
Re8+ {[%clk 0:00:49.9]} 36... Rxe8 {[%clk 0:00:19.3]} 37. Rxe8+ {[%clk
0:00:50.8]} 37... Ka7 {[%clk 0:00:19.6]} 38. Re5 {[%clk 0:00:39.1]} 38... d4
{[%clk 0:00:17.2]} 39. Rxc5 {[%clk 0:00:38.8]} 39... Qb2 {[%clk 0:00:16.4]} 40.
Rc4 {[%clk 0:00:32.6]} 40... d3 {[%clk 0:00:11.9]} 41. Qc5+ {[%clk 0:00:22.1]}
41... Ka8 {[%clk 0:00:09.8]} 42. Re4 {[%clk 0:00:18.3]} 42... Qh8 {[%clk
0:00:07.1]} 43. h6 {[%clk 0:00:12.4]} 43... Qb8+ {[%clk 0:00:02.8]} 44. f4
{[%clk 0:00:11.9]} 44... d2 {[%clk 0:00:03]} 45. Rd4 {[%clk 0:00:12]} 45... Qg8
{[%clk 0:00:02]} 46. Qd6 {[%clk 0:00:11.4]} 46... Qa2 {[%clk 0:00:01.1]} 47.
Rxd2 {[%clk 0:00:11.5]} 47... Qa4 {[%clk 0:00:01.8]} 48. Qd8+ {[%clk 0:00:11.3]}
48... Ka7 {[%clk 0:00:02.7]} 49. Qd4+ {[%clk 0:00:11.7]} 49... Ka8 {[%clk
0:00:02.6]} 50. Qxa4 {[%clk 0:00:11.6]} 1-0